fUST/lending_fUST_20241112
["ID","MTS","AMOUNT","RATE_DAILY","PERIOD"]
[341976009,1731341443803,-500.0,0.00024265,2]
[341976010,1731341443813,-3352.3,0.00024265,2]
[341976012,1731341443822,-500.0,0.00024265,2]
[341976014,1731341443831,-500.0,0.00024265,2]
[341976016,1731341443841,-613.97278429,0.00024265,2]
[341976018,1731341443854,-500.0,0.00024265,2]
[341976020,1731341443863,-566.07616342,0.00024265,2]
[341976022,1731341443872,-113.38531929,0.00024265,2]
[341976024,1731341443884,-1140.12468071,0.00024265,2]
[341976025,1731341443894,-500.0,0.00024265,2]
[341976026,1731341443903,-497.98100556,0.00024265,2]
[341976028,1731341443911,-500.0,0.00024265,2]
[341976030,1731341443921,-500.0,0.00024265,2]
[341976032,1731341443932,-500.0,0.00024265,2]
[341976034,1731341443941,-500.0,0.00024265,2]
[341976036,1731341443951,-1170.54,0.00024265,2]
[341976038,1731341443960,-643.62435138,0.00024265,2]
[341976039,1731341443969,-866.49,0.00024265,2]
[341976040,1731341443979,-500.0,0.00024265,2]
[341976041,1731341443988,-501.87126721,0.00024266,2]
[341976042,1731341443998,-500.0,0.00024266,2]
[341976043,1731341444008,-3154.02,0.00024266,2]
[341976044,1731341444017,-500.0,0.00024266,2]
[341976045,1731341444027,-500.0,0.00024267,2]
[341976046,1731341444036,-551.30471963,0.00024267,2]
[341976047,1731341444046,-500.0,0.00024267,2]
[341976048,1731341444055,-500.0,0.00024267,2]
[341976049,1731341444065,-500.0,0.00024267,2]
[341976050,1731341444075,-500.0,0.00024267,2]
[341976051,1731341444084,-691.85,0.00024267,2]
[341976052,1731341444094,-500.0,0.00024267,2]
[341976053,1731341444107,-500.0,0.00024267,2]
[341976054,1731341444116,-523.49,0.00024267,2]
[341976055,1731341444126,-500.0,0.00024267,2]
[341976056,1731341444135,-500.0,0.00024267,2]
[341976057,1731341444144,-564.96791943,0.00024267,2]
[341976058,1731341444154,-2012.55,0.00024267,2]
[341976059,1731341444164,-500.0,0.00024267,2]
[341976060,1731341444173,-636.36,0.00024267,2]
[341976061,1731341444182,-500.0,0.00024267,2]
[341976062,1731341444191,-500.0,0.00024267,2]
[341976063,1731341444202,-500.0,0.00024267,2]
[341976064,1731341444213,-883.88,0.00024267,2]
[341976065,1731341444226,-992.25,0.00024267,2]
[341976066,1731341444237,-1854.63,0.00024267,2]
[341976067,1731341444247,-500.0,0.00024267,2]
[341976068,1731341444258,-500.0,0.00024267,2]
[341976069,1731341444268,-1318.25,0.00024267,2]
[341976070,1731341444278,-500.0,0.00024267,2]
[341976071,1731341444287,-794.44,0.00024267,2]
[341976072,1731341444298,-500.0,0.00024267,2]
[341976073,1731341444309,-500.0,0.00024267,2]
[341976074,1731341444318,-500.0,0.00024267,2]
[341976075,1731341444328,-500.0,0.00024268,2]
[341976076,1731341444337,-471.31583747,0.00024268,2]
[341976077,1731341444348,-500.0,0.00024269,2]
[341976078,1731341444361,-467.12245185,0.00024269,2]
[341976079,1731341444374,-500.0,0.00024269,2]
[341976080,1731341444385,-432.80712029,0.00024269,2]
[341976081,1731341444395,-500.0,0.00024269,2]
[341976082,1731341444406,-500.0,0.00024269,2]
[341976083,1731341444416,-500.0,0.00024269,2]
[341976084,1731341444425,-500.0,0.00024269,2]
[341976085,1731341444434,-500.0,0.00024269,2]
[341976086,1731341444443,-500.0,0.00024269,2]
[341976087,1731341444452,-500.0,0.00024269,2]
[341976088,1731341444461,-540.54940375,0.00024269,2]
[341976089,1731341444470,-500.0,0.00024269,2]
[341976090,1731341444479,-500.0,0.00024269,2]
[341976091,1731341444489,-500.0,0.00024269,2]
[341976092,1731341444498,-500.0,0.00024269,2]
[341976093,1731341444507,-500.0,0.00024269,2]
[341976094,1731341444517,-500.0,0.00024269,2]
[341976095,1731341444526,-500.0,0.00024269,2]
[341976096,1731341444534,-500.0,0.00024269,2]
[341976097,1731341444544,-326.37943885,0.00024273,2]
[341976098,1731341444553,-504.21690364,0.00024273,2]
[341976099,1731341444562,-500.0,0.00024273,2]
[341976100,1731341444572,-502.84652768,0.00024273,2]
[341976101,1731341444581,-500.0,0.00024273,2]
[341976102,1731341444590,-500.0,0.00024273,2]
[341976103,1731341444603,-201.74591296,0.00024273,2]
[341976104,1731341444613,-500.0,0.00024273,2]
[341976105,1731341444622,-500.0,0.00024273,2]
[341976106,1731341444631,-500.0,0.00024273,2]
[341976107,1731341444640,-500.0,0.00024273,2]
[341976108,1731341444651,-500.0,0.00024273,2]
[341976109,1731341444660,-501.02026874,0.00024273,2]
[341976110,1731341444669,-500.0,0.00024273,2]
[341976111,1731341444678,-614.56259613,0.00024439,2]
[341976112,1731341444687,-1751.1,0.00024519,2]
[341976113,1731341444696,-1557.12,0.00024519,2]
[341976114,1731341444705,-500.0,0.00024519,2]
[341976115,1731341444715,-801.95,0.00024519,2]
[341976116,1731341444724,-500.0,0.00024519,2]
[341976117,1731341444733,-4482.04,0.00024519,2]
[341976118,1731341444742,-516.32771246,0.00024519,2]
[341976119,1731341444751,-500.0,0.0002452,2]
[341976120,1731341444760,-15081.59,0.0002452,2]
[341976121,1731341444769,-500.0,0.0002452,2]
[341976122,1731341444778,-643.07,0.0002452,2]
[341976123,1731341444788,-1219.82,0.0002452,2]
[341976124,1731341444797,-589.77,0.0002452,2]
[341976125,1731341444808,-1755.3,0.0002452,2]
[341976126,1731341444820,-500.0,0.0002452,2]
[341976127,1731341444830,-1278.4,0.0002452,2]
[341976128,1731341444840,-500.0,0.0002452,2]
[341976129,1731341444852,-501.33,0.0002452,2]
[341976130,1731341444861,-500.0,0.0002452,2]
[341976131,1731341444871,-500.0,0.0002452,2]
[341976132,1731341444880,-736.68,0.0002452,2]
[341976133,1731341444889,-500.0,0.0002452,2]
[341976134,1731341444899,-682.88,0.0002452,2]
[341976135,1731341444908,-500.0,0.0002452,2]
[341976136,1731341444917,-1571.57,0.0002452,2]
[341976137,1731341444927,-500.0,0.0002452,2]
[341976138,1731341444936,-500.0,0.0002452,2]
[341976139,1731341444945,-500.0,0.00024539,2]
[341976140,1731341444954,-500.0,0.00024539,2]
[341976141,1731341444963,-500.0,0.00024539,2]
[341976142,1731341444972,-500.0,0.00024539,2]
[341976143,1731341444982,-500.0,0.00024539,2]
[341976144,1731341444991,-539.78,0.00024539,2]
[341976145,1731341445001,-500.0,0.00024539,2]
[341976146,1731341445010,-500.0,0.00024539,2]
[341976147,1731341445019,-500.0,0.00024539,2]
[341976148,1731341445029,-500.0,0.00024539,2]
[341976149,1731341445039,-500.0,0.00024539,2]
[341976150,1731341445048,-500.0,0.00024539,2]
[341976151,1731341445057,-500.0,0.00024539,2]
[341976152,1731341445065,-500.0,0.00024539,2]
[341976153,1731341445075,-500.0,0.00024539,2]
[341976154,1731341445084,-515.67,0.00024539,2]
[341976155,1731341445092,-267.60359206,0.00024539,2]
[341976156,1731341445104,-500.0,0.00024539,2]
[341976157,1731341445113,-500.0,0.00024539,2]
[341976158,1731341445122,-500.0,0.00024539,2]
[341976159,1731341445131,-527.04321078,0.00024539,2]
[341976160,1731341445140,-500.0,0.00024539,2]
[341976161,1731341445231,-624.95472624,0.00024539,2]
[341976162,1731341445240,-537.86847842,0.00024539,2]
[341976163,1731341445249,-500.0,0.00024539,2]
[341976164,1731341445259,-500.0,0.00024539,2]
[341976165,1731341445268,-500.0,0.00024539,2]
[341976166,1731341445277,-500.0,0.00024539,2]
[341976167,1731341445286,-500.0,0.00024539,2]
[341976168,1731341445295,-500.0,0.00024539,2]
[341976169,1731341445305,-500.0,0.00024539,2]
[341976170,1731341445315,-500.0,0.00024539,2]
[341976171,1731341445324,-1166.18,0.00024539,2]
[341976172,1731341445333,-3931.05,0.00024539,2]
[341976173,1731341445342,-500.0,0.00024539,2]
[341976174,1731341445353,-504.08,0.00024539,2]
[341976175,1731341445363,-500.0,0.00024539,2]
[341976176,1731341445372,-500.0,0.00024539,2]
[341976177,1731341445381,-500.0,0.00024539,2]
[341976178,1731341445390,-500.0,0.00024539,2]
[341976179,1731341445399,-500.0,0.00024539,2]
[341976180,1731341445406,-566.59338015,0.00024539,2]
[341976181,1731341445414,-500.0,0.00024539,2]
[341976182,1731341445423,-1462.77,0.00024539,2]
[341976183,1731341445432,-500.0,0.00024539,2]
[341976184,1731341445441,-500.0,0.00024539,2]
[341976185,1731341445450,-839.78,0.00024539,2]
[341976186,1731341445460,-500.0,0.00024539,2]
[341976187,1731341445469,-500.0,0.00024539,2]
[341976188,1731341445478,-886.15,0.00024539,2]
[341976189,1731341445486,-500.0,0.00024539,2]
[341976190,1731341445496,-605.37,0.00024539,2]
[341976191,1731341445504,-555.85,0.00024539,2]
[341976192,1731341445513,-835.26,0.00024539,2]
[341976193,1731341445523,-500.0,0.00024539,2]
[341976194,1731341445532,-814.45,0.00024539,2]
[341976195,1731341445541,-500.0,0.00024539,2]
[341976196,1731341445550,-500.0,0.00024539,2]
[341976197,1731341445559,-500.0,0.00024539,2]
[341976198,1731341445568,-3352.3,0.00024539,2]
[341976199,1731341445577,-500.0,0.00024539,2]
[341976200,1731341445586,-1253.51,0.00024539,2]
[341976201,1731341445595,-500.0,0.00024539,2]
[341976202,1731341445609,-1170.54,0.00024539,2]
[341976203,1731341445620,-866.49,0.00024539,2]
[341976204,1731341445629,-3154.02,0.0002454,2]
[341976205,1731341445638,-500.0,0.0002454,2]
[341976206,1731341445647,-500.0,0.00024541,2]
[341976207,1731341445656,-583.27476077,0.00024541,2]
[341976208,1731341445665,-500.0,0.00024541,2]
[341976209,1731341445674,-500.0,0.00024541,2]
[341976210,1731341445684,-500.0,0.00024541,2]
[341976211,1731341445694,-691.85,0.00024541,2]
[341976212,1731341445704,-500.0,0.00024541,2]
[341976213,1731341445714,-500.0,0.00024541,2]
[341976214,1731341445723,-523.49,0.00024541,2]
[341976215,1731341445732,-500.0,0.00024541,2]
[341976216,1731341445742,-2012.55,0.00024541,2]
[341976217,1731341445752,-500.0,0.00024541,2]
[341976218,1731341445762,-636.36,0.00024541,2]
[341976219,1731341445773,-500.0,0.00024541,2]
[341976220,1731341445782,-883.88,0.00024541,2]
[341976221,1731341445792,-992.25,0.00024541,2]
[341976222,1731341445802,-1854.63,0.00024541,2]
[341976223,1731341445812,-500.0,0.00024541,2]
[341976224,1731341445823,-1318.25,0.00024541,2]
[341976226,1731341445833,-794.44,0.00024541,2]
[341976227,1731341445843,-500.0,0.00024541,2]
[341976228,1731341445858,-500.0,0.00024541,2]
[341976229,1731341445869,-500.0,0.00024541,2]
[341976230,1731341445880,-500.0,0.00024543,2]
[341976231,1731341445889,-500.0,0.00024543,2]
[341976233,1731341445900,-555.26766671,0.00024543,2]
[341976234,1731341445909,-500.0,0.00024543,2]
[341976236,1731341445918,-289.132075,0.00024543,2]
[341976238,1731341445927,-500.0,0.00024543,2]
[341976240,1731341445937,-500.0,0.00024543,2]
[341976242,1731341445946,-500.0,0.00024543,2]
[341976243,1731341445955,-500.0,0.00024543,2]
[341976245,1731341445965,-500.0,0.00024543,2]
[341976246,1731341445975,-500.0,0.00024543,2]
[341976247,1731341445983,-500.0,0.00024543,2]
[341976248,1731341445993,-500.0,0.00024543,2]
[341976249,1731341446002,-500.0,0.00024543,2]
[341976250,1731341446013,-500.0,0.00024573,2]
[341976251,1731341446022,-500.0,0.00024573,2]
[341976253,1731341446032,-500.0,0.00024573,2]
[341976254,1731341446042,-150.77337661,0.00024573,2]
[341976256,1731341446051,-363.63856668,0.00024573,2]
[341976259,1731341446061,-500.0,0.00024573,2]
[341976261,1731341446071,-500.0,0.00024573,2]
[341976263,1731341446080,-4394.479662,0.000246,2]
[341976265,1731341446089,-500.0,0.00024658,2]
[341976267,1731341446101,-500.0,0.00024658,2]
[341976268,1731341446110,-500.0,0.00024658,2]
[341976270,1731341446119,-500.0,0.00024658,2]
[341976272,1731341446129,-500.0,0.00024658,2]
[341976274,1731341446138,-500.0,0.00024658,2]
[341976276,1731341446147,-500.0,0.00024658,2]
[341976278,1731341446156,-500.0,0.00024658,2]
[341976280,1731341446165,-500.0,0.00024658,2]
[341976282,1731341446174,-500.0,0.00024658,2]
[341976284,1731341446183,-401.01443395,0.00024658,2]
[341976286,1731341446192,-500.0,0.00024658,2]
[341976288,1731341446202,-500.0,0.00024658,2]
[341976290,1731341446212,-4138.0,0.0002471,4]
[341976292,1731341446226,-614.56259613,0.00024713,2]
[341976294,1731341446237,-570.16873029,0.00024792,2]
[341976297,1731341446249,-428.92121401,0.00024792,2]
[341976299,1731341446259,-500.0,0.00024792,2]
[341976301,1731341446270,-177.32727502,0.00024792,2]
[341976303,1731341446280,-500.0,0.00024792,2]
[341976305,1731341446291,-508.21768873,0.00024792,2]
[341976307,1731341446301,-645.82430471,0.00024792,2]
[341976309,1731341446311,-500.0,0.00024792,2]
[341976311,1731341446320,-371.49357691,0.00024792,2]
[341976313,1731341446331,-500.0,0.00024792,2]
[341976315,1731341446341,-500.0,0.00024792,2]
[341976316,1731341446353,-1751.1,0.00024793,2]
[341976317,1731341446363,-1557.12,0.00024793,2]
[341976318,1731341446373,-500.0,0.00024793,2]
[341976319,1731341446383,-801.95,0.00024793,2]
[341976320,1731341446393,-500.0,0.00024793,2]
[341976321,1731341446403,-4482.04,0.00024793,2]
[341976322,1731341446413,-500.0,0.00024794,2]
[341976323,1731341446423,-15081.59,0.00024794,2]
[341976324,1731341446434,-500.0,0.00024794,2]
[341976325,1731341446444,-643.07,0.00024794,2]
[341976326,1731341446454,-1219.82,0.00024794,2]
[341976327,1731341446464,-589.77,0.00024794,2]
[341976328,1731341446473,-1755.3,0.00024794,2]
[341976329,1731341446483,-500.0,0.00024794,2]
[341976330,1731341446494,-1278.4,0.00024794,2]
[341976331,1731341446503,-500.0,0.00024794,2]
[341976332,1731341446513,-501.33,0.00024794,2]
[341976333,1731341446523,-539.98448942,0.00024794,2]
[341976334,1731341446533,-500.0,0.00024794,2]
[341976335,1731341446543,-736.68,0.00024794,2]
[341976336,1731341446552,-500.0,0.00024794,2]
[341976337,1731341446563,-682.88,0.00024794,2]
[341976339,1731341446573,-488.89939818,0.00024794,2]
[341976341,1731341446583,-1571.57,0.00024794,2]
[341976344,1731341446593,-500.0,0.00024794,2]
[341976345,1731341446605,-500.0,0.00024794,2]
[341976347,1731341446615,-500.0,0.00024813,2]
[341976349,1731341446624,-500.0,0.00024813,2]
[341976351,1731341446634,-500.0,0.00024813,2]
[341976353,1731341446645,-632.97237967,0.00024813,2]
[341976356,1731341446655,-500.0,0.00024813,2]
[341976358,1731341446666,-539.78,0.00024813,2]
[341976360,1731341446677,-433.61,0.00024813,2]
[341976362,1731341446687,-500.0,0.00024813,2]
[341976364,1731341446696,-500.0,0.00024813,2]
[341976366,1731341446705,-500.0,0.00024813,2]
[341976368,1731341446715,-500.0,0.00024813,2]
[341976370,1731341446724,-500.0,0.00024813,2]
[341976372,1731341446735,-500.0,0.00024813,2]
[341976374,1731341446745,-500.0,0.00024813,2]
[341976376,1731341446755,-500.0,0.00024813,2]
[341976378,1731341446764,-515.67,0.00024813,2]
[341976380,1731341446774,-556.619949,0.00024813,2]
[341976382,1731341446784,-500.0,0.00024813,2]
[341976384,1731341446793,-500.0,0.00024813,2]
[341976386,1731341446803,-500.0,0.00024813,2]
[341976388,1731341446813,-500.0,0.00024813,2]
[341976390,1731341446823,-276.99672157,0.00024813,2]
[341976392,1731341446833,-500.0,0.00024813,2]
[341976394,1731341446844,-500.0,0.00024813,2]
[341976396,1731341446856,-500.0,0.00024813,2]
[341976398,1731341446866,-248.5163997,0.00024813,2]
[341976400,1731341446875,-500.0,0.00024813,2]
[341976402,1731341446885,-1166.18,0.00024813,2]
[341976404,1731341446895,-3931.05,0.00024813,2]
[341976406,1731341446904,-500.0,0.00024813,2]
[341976408,1731341446914,-504.08,0.00024813,2]
[341976410,1731341446924,-215.15546025,0.00024813,2]
[341976412,1731341446934,-500.0,0.00024813,2]
[341976414,1731341446943,-500.0,0.00024813,2]
[341976416,1731341446954,-500.0,0.00024813,2]
[341976418,1731341446963,-500.0,0.00024813,2]
[341976420,1731341446972,-500.0,0.00024813,2]
[341976422,1731341446982,-1462.77,0.00024813,2]
[341976424,1731341446991,-500.0,0.00024813,2]
[341976426,1731341447001,-500.0,0.00024813,2]
[341976428,1731341447011,-839.78,0.00024813,2]
[341976430,1731341447020,-500.0,0.00024813,2]
[341976432,1731341447030,-500.0,0.00024813,2]
[341976434,1731341447040,-886.15,0.00024813,2]
[341976435,1731341447049,-500.0,0.00024813,2]
[341976438,1731341447059,-605.37,0.00024813,2]
[341976440,1731341447069,-555.85,0.00024813,2]
[341976445,1731341447154,-835.26,0.00024813,2]
[341976447,1731341447165,-500.0,0.00024813,2]
[341976449,1731341447175,-814.45,0.00024813,2]
[341976451,1731341447184,-394.0702204,0.00024813,2]
[341976453,1731341447193,-500.0,0.00024813,2]
[341976455,1731341447203,-500.0,0.00024813,2]
[341976457,1731341447215,-3352.3,0.00024813,2]
[341976459,1731341447225,-500.0,0.00024813,2]
[341976461,1731341447234,-1253.51,0.00024813,2]
[341976463,1731341447243,-1170.54,0.00024813,2]
[341976465,1731341447254,-866.49,0.00024813,2]
[341976467,1731341447264,-3154.02,0.00024814,2]
[341976469,1731341447274,-500.0,0.00024814,2]
[341976471,1731341447283,-500.0,0.00024815,2]
[341976473,1731341447295,-500.0,0.00024815,2]
[341976475,1731341447304,-500.0,0.00024815,2]
[341976477,1731341447314,-500.0,0.00024815,2]
[341976479,1731341447323,-691.85,0.00024815,2]
[341976481,1731341447333,-500.0,0.00024815,2]
[341976483,1731341447343,-500.0,0.00024815,2]
[341976485,1731341447356,-523.49,0.00024815,2]
[341976487,1731341447369,-500.0,0.00024815,2]
[341976489,1731341447382,-2012.55,0.00024815,2]
[341976491,1731341447394,-500.0,0.00024815,2]
[341976493,1731341447403,-636.36,0.00024815,2]
[341976495,1731341447412,-883.88,0.00024815,2]
[341976497,1731341447422,-992.25,0.00024815,2]
[341976499,1731341447430,-1854.63,0.00024815,2]
[341976501,1731341447440,-500.0,0.00024815,2]
[341976503,1731341447449,-1318.25,0.00024815,2]
[341976505,1731341447462,-794.44,0.00024815,2]
[341976507,1731341447472,-500.0,0.00024815,2]
[341976509,1731341447481,-270.47937871,0.00024815,2]
[341976511,1731341447490,-528.4367728,0.00024815,2]
[341976513,1731341447500,-500.0,0.00024817,2]
[341976515,1731341447509,-535.31135547,0.00024817,2]
[341976517,1731341447518,-500.0,0.00024817,2]
[341976519,1731341447527,-500.0,0.00024817,2]
[341976521,1731341447536,-500.0,0.00024817,2]
[341976523,1731341447545,-500.0,0.00024817,2]
[341976525,1731341447554,-500.0,0.00024817,2]
[341976527,1731341447564,-500.0,0.00024817,2]
[341976529,1731341447573,-647.98589397,0.00024817,2]
[341976531,1731341447582,-500.0,0.00024817,2]
[341976533,1731341447591,-182.22895252,0.00024817,2]
[341976535,1731341447602,-500.0,0.00024817,2]
[341976537,1731341447612,-614.56259613,0.00024987,2]
[341976539,1731341447621,-2316.5,0.00025,2]
[341976541,1731341447630,-1751.1,0.00025067,2]
[341976543,1731341447640,-1557.12,0.00025067,2]
[341976545,1731341447650,-500.0,0.00025067,2]
[341976547,1731341447660,-801.95,0.00025067,2]
[341976549,1731341447671,-500.0,0.00025067,2]
[341976551,1731341447680,-4482.04,0.00025067,2]
[341976553,1731341447690,-500.0,0.00025068,2]
[341976555,1731341447699,-15081.59,0.00025068,2]
[341976557,1731341447708,-500.0,0.00025068,2]
[341976560,1731341447718,-643.07,0.00025068,2]
[341976562,1731341447729,-1219.82,0.00025068,2]
[341976563,1731341447737,-589.77,0.00025068,2]
[341976565,1731341447747,-1755.3,0.00025068,2]
[341976567,1731341447757,-500.0,0.00025068,2]
[341976570,1731341447767,-1278.4,0.00025068,2]
[341976571,1731341447777,-500.0,0.00025068,2]
[341976574,1731341447786,-501.33,0.00025068,2]
[341976576,1731341447796,-500.0,0.00025068,2]
[341976577,1731341447805,-736.68,0.00025068,2]
[341976579,1731341447815,-210.77031992,0.00025068,2]
[341976581,1731341447825,-682.88,0.00025068,2]
[341976584,1731341447834,-1571.57,0.00025068,2]
[341976586,1731341447843,-520.38,0.00025068,2]
[341976587,1731341447857,-500.0,0.00025068,2]
[341976590,1731341447867,-501.98139665,0.00025073,2]
[341976591,1731341447876,-500.0,0.00025073,2]
[341976593,1731341447886,-500.0,0.00025087,2]
[341976595,1731341447895,-512.42101299,0.00025087,2]
[341976597,1731341447905,-500.0,0.00025087,2]
[341976599,1731341447914,-500.0,0.00025087,2]
[341976601,1731341447923,-539.78,0.00025087,2]
[341976603,1731341447933,-500.0,0.00025087,2]
[341976605,1731341447942,-500.0,0.00025087,2]
[341976607,1731341447952,-500.0,0.00025087,2]
[341976609,1731341447962,-500.0,0.00025087,2]
[341976611,1731341447972,-500.0,0.00025087,2]
[341976613,1731341447984,-500.0,0.00025087,2]
[341976615,1731341447997,-500.0,0.00025087,2]
[341976617,1731341448006,-515.67,0.00025087,2]
[341976619,1731341448017,-645.26228733,0.00025087,2]
[341976621,1731341448026,-500.0,0.00025087,2]
[341976623,1731341448037,-297.4695027,0.00025087,2]
[341976625,1731341448047,-500.0,0.00025087,2]
[341976627,1731341448059,-500.0,0.00025087,2]
[341976629,1731341448071,-500.0,0.00025087,2]
[341976631,1731341448086,-500.0,0.00025087,2]
[341976633,1731341448096,-500.0,0.00025087,2]
[341976635,1731341448111,-1166.18,0.00025087,2]
[341976637,1731341448121,-3931.05,0.00025087,2]
[341976639,1731341448131,-500.0,0.00025087,2]
[341976641,1731341448143,-504.08,0.00025087,2]
[341976643,1731341448155,-500.0,0.00025087,2]
[341976646,1731341448165,-500.0,0.00025087,2]
[341976648,1731341448174,-371.6495317,0.00025087,2]
[341976650,1731341448184,-500.0,0.00025087,2]
[341976652,1731341448194,-500.0,0.00025087,2]
[341976654,1731341448204,-1462.77,0.00025087,2]
[341976656,1731341448216,-500.0,0.00025087,2]
[341976658,1731341448227,-500.0,0.00025087,2]
[341976660,1731341448237,-839.78,0.00025087,2]
[341976662,1731341448246,-500.0,0.00025087,2]
[341976664,1731341448257,-500.0,0.00025087,2]
[341976666,1731341448266,-886.15,0.00025087,2]
[341976668,1731341448277,-500.0,0.00025087,2]
[341976670,1731341448286,-605.37,0.00025087,2]
[341976672,1731341448299,-555.85,0.00025087,2]
[341976674,1731341448308,-835.26,0.00025087,2]
[341976676,1731341448318,-500.0,0.00025087,2]
[341976678,1731341448327,-814.45,0.00025087,2]
[341976680,1731341448336,-500.0,0.00025087,2]
[341976682,1731341448346,-500.0,0.00025087,2]
[341976684,1731341448358,-3352.3,0.00025087,2]
[341976686,1731341448368,-500.0,0.00025087,2]
[341976688,1731341448376,-1253.51,0.00025087,2]
[341976690,1731341448384,-1170.54,0.00025087,2]
[341976693,1731341448394,-866.49,0.00025087,2]
[341976695,1731341448403,-3154.02,0.00025088,2]
[341976697,1731341448410,-500.0,0.00025088,2]
[341976699,1731341448419,-500.0,0.00025089,2]
[341976701,1731341448429,-500.0,0.00025089,2]
[341976703,1731341448438,-500.0,0.00025089,2]
[341976705,1731341448449,-500.0,0.00025089,2]
[341976707,1731341448458,-691.85,0.00025089,2]
[341976709,1731341448468,-500.0,0.00025089,2]
[341976711,1731341448478,-500.0,0.00025089,2]
[341976713,1731341448488,-523.49,0.00025089,2]
[341976715,1731341448498,-500.0,0.00025089,2]
[341976717,1731341448508,-2012.55,0.00025089,2]
[341976719,1731341448517,-500.0,0.00025089,2]
[341976721,1731341448527,-636.36,0.00025089,2]
[341976723,1731341448537,-883.88,0.00025089,2]
[341976725,1731341448548,-992.25,0.00025089,2]
[341976727,1731341448557,-1854.63,0.00025089,2]
[341976729,1731341448567,-500.0,0.00025089,2]
[341976731,1731341448577,-1318.25,0.00025089,2]
[341976733,1731341448586,-794.44,0.00025089,2]
[341976735,1731341448596,-500.0,0.00025089,2]
[341976737,1731341448608,-500.0,0.00025091,2]
[341976740,1731341448618,-500.0,0.00025091,2]
[341976742,1731341448627,-500.0,0.00025091,2]
[341976744,1731341448635,-500.0,0.00025091,2]
[341976745,1731341448643,-500.0,0.00025091,2]
[341976747,1731341448652,-500.0,0.00025091,2]
[341976749,1731341448661,-517.36400715,0.00025091,2]
[341976751,1731341448670,-500.0,0.00025091,2]
[341976753,1731341448680,-4537.2388558,0.00025312,2]
[341976755,1731341448690,-1751.1,0.00025341,2]
[341976757,1731341448699,-1557.12,0.00025341,2]
[341976760,1731341448709,-500.0,0.00025341,2]
[341976762,1731341448719,-801.95,0.00025341,2]
[341976764,1731341448728,-500.0,0.00025341,2]
[341976766,1731341448738,-4482.04,0.00025341,2]
[341976768,1731341448747,-500.0,0.00025342,2]
[341976770,1731341448757,-15081.59,0.00025342,2]
[341976772,1731341448767,-500.0,0.00025342,2]
[341976774,1731341448777,-643.07,0.00025342,2]
[341976776,1731341448787,-1219.82,0.00025342,2]
[341976778,1731341448797,-589.77,0.00025342,2]
[341976780,1731341448807,-1755.3,0.00025342,2]
[341976782,1731341448816,-500.0,0.00025342,2]
[341976784,1731341448827,-1278.4,0.00025342,2]
[341976786,1731341448837,-500.0,0.00025342,2]
[341976788,1731341448847,-501.33,0.00025342,2]
[341976790,1731341448859,-500.0,0.00025342,2]